Cogmind - Beta 14 --- EXPLORER MODE // 2024.11.17 @ 21:40:34 Player: Takao Tuesday Result: Self-destructed Performance ------------- Evolutions (6) 3000 Regions Visited (11) 2200 Robots Destroyed (165) 825 Value Destroyed (6446) 6446 Prototype IDs (6) 120 Alien Tech Used (0) 0 Bonus (34) 34 TOTAL SCORE: 12625 Bonus ------- High Alert Combat Kills 34 Cogmind --------- Core Integrity 321/1150 Matter 280/300 Energy 14/100 System Corruption 11% Temperature Hot (276) Movement Core (200) Ox3 Location -4/Factory Parts ------- > --- POWER (4) -------- (None) > --- PROPULSION (4) --- (None) > --- UTILITY (7) ------ (None) > --- WEAPON (5) ------- Heavy Plasma Cannon > --- INVENTORY (5) ---- Coolant Injector Improved Energy Well (400) Improved Signal Interpreter Long-range Tractor Beam Advanced Plasma Cannon Peak State ------------ > --- POWER ------------ Enhanced Nuclear Core Neutrino Core Micro Fission Core > --- PROPULSION ------- Armored Huge Wheel Armored Huge Wheel > --- UTILITY ---------- Advanced Cooling System Huge Storage Unit Improved Transmission Jammer Layered Light Armor Plating Advanced Hacking Suite System Guard Improved Recalibrator > --- WEAPON ----------- Advanced Plasma Cannon Advanced Plasma Cannon KE Penetrator Enhanced Gauss Cannon > --- INVENTORY -------- Armored Huge Wheel Power Amplifier Improved Thermal Generator Advanced Cooling System Coolant Injector Improved Energy Well Improved Signal Interpreter Advanced Targeting Computer Energy Filter Improved Kinecellerator Improved Kinecellerator Advanced ECM Suite Relay Coupler [Swarmer] Relay Coupler [Grunt] Long-range Tractor Beam Long-range Tractor Beam Recalibrator Mini Drone Bay Heavy Plasma Cannon Heavy Plasma Cannon Heavy Plasma Cannon Advanced Plasma Cannon Improved Datajack Improved Remote Datajack [Rating: 102] Favorites ----------- Power Improved Deuterium Engine Engine Improved Deuterium Engine Power Core Micro Nuclear Core Reactor Heavy Antimatter Reactor Propulsion Armored Huge Wheel Treads Light Treads Leg Titanium Leg Wheel Armored Huge Wheel Utility Huge Storage Unit Device Improved Cooling System Storage Huge Storage Unit Processor System Guard Hackware Advanced Hacking Suite Protection Layered Light Armor Plating Weapon Gauss Cannon Energy Gun Tesla Rifle Energy Cannon Heavy Plasma Cannon Ballistic Gun Flak Gun Ballistic Cannon Gauss Cannon Launcher Heavy Shock Bomb Launcher Special Weapon Improved Remote Datajack Impact Weapon Heavy Flail Special Melee Weapon Improved Datajack Build | -11 -10 -9 -8 -7 -6 -5 -5 -5 -4 -4 -4 ------- Run | Yrd Mat Mat Mat Fac Fac Fac Upp Upp Fac Was Fac Slots Evolved 13 | . 1 2 2 2 2 2 . . 2 . . Power 3 | . . 1 . . 1 . . . 1 . . Propulsion 2 | . . . . 2 . . . . . . . Utility 5 | . 1 . 1 . 1 2 . . . . . Weapon 3 | . . 1 1 . . . . . 1 . . Parts Attached 165 | 7 14 22 23 40 12 35 1 3 . 1 7 Power 31 | 1 3 7 2 6 3 7 . 1 . 1 . Engine 14 | 1 . 6 2 3 . 2 . . . . . Core 16 | . 3 1 . 3 3 5 . 1 . . . Reactor 1 | . . . . . . . . . . 1 . Propulsion 17 | 2 2 . 7 4 . 2 . . . . . Treads 4 | 2 . . 2 . . . . . . . . Leg 2 | . . . 2 . . . . . . . . Wheel 11 | . 2 . 3 4 . 2 . . . . . Hover . | . . . . . . . . . . . . Flight . | . . . . . . . . . . . . Utility 48 | 2 3 6 4 10 3 16 1 . . . 3 Device 22 | . . . 1 5 3 9 1 . . . 3 Storage 6 | 1 1 1 1 . . 2 . . . . . Processor 5 | . 1 2 . 1 . 1 . . . . . Hackware 4 | . . . . 1 . 3 . . . . . Protection 11 | 1 1 3 2 3 . 1 . . . . . Artifact . | . . . . . . . . . . . . Weapon 69 | 2 6 9 10 20 6 10 . 2 . . 4 Energy Gun 1 | . . . . . . 1 . . . . . Energy Cannon 14 | . . . 1 1 4 6 . . . . 2 Ballistic Gun 29 | 2 4 8 7 7 . 1 . . . . . Ballistic Cannon 14 | . . . 2 8 2 1 . . . . 1 Launcher 3 | . 2 . . . . 1 . . . . . Special Weapon 1 | . . . . . . . . 1 . . . Impact Weapon 5 | . . 1 . 4 . . . . . . . Slashing Weapon . | . . . . . . . . . . . . Piercing Weapon . | . . . . . . . . . . . . Special Melee Weapon 2 | . . . . . . . . 1 . . 1 Unidentified Prototypes 6 | . . . 1 3 . 1 . . . 1 . Parts Lost 33 | . . 3 . 4 . 8 1 1 . 5 11 Power 12 | . . 2 . 1 . 4 . 1 . 4 . Propulsion 5 | . . 1 . 1 . 1 1 . . . 1 Utility 9 | . . . . . . 2 . . . . 7 Weapon 7 | . . . . 2 . 1 . . . 1 3 Highest Loss Streak 11 | . . 2 . 2 . 4 1 1 . 3 11 To Critical Strikes 1 | . . . . . . 1 . . . . . Average Slot Usage (%) 86 | . 99 92 96 82 78 83 85 82 75 57 33 Engine 8 | . 4 15 16 8 6 4 . . . . . Core 6 | . 7 3 . 5 9 9 16 15 15 7 . Treads 1 | . 17 . 4 . . . . . . . . Wheel 11 | . 7 14 8 13 12 10 7 5 5 5 2 Device 7 | . . . . 7 12 15 22 22 20 15 16 Storage 8 | . 12 10 15 7 6 4 5 5 5 5 4 Processor 4 | . 12 10 7 . . 4 5 5 5 5 3 Protection 8 | . 11 10 8 10 6 4 5 5 5 1 . Energy Cannon 3 | . . . 1 . 8 11 11 11 10 6 6 Ballistic Gun 13 | . 20 29 30 8 . . 5 5 5 2 . Ballistic Cannon 6 | . . . 1 14 9 3 5 . . . . Impact Weapon 2 | . . . . 4 6 4 . . . . . Peak Build Rating 102 | 7 10 25 52 63 73 102 101 94 93 101 63 Average Rating 54 | 4 9 17 42 60 66 87 96 92 93 73 45 On Entrance 53 | . 7 10 25 52 59 72 96 94 93 93 42 Naked Turns . | . . . . . . . . . . . . Heaviest Build 170 | 20 32 111 125 141 159 170 152 147 147 165 110 Greatest Support 56 | 40 40 32 42 56 56 56 56 28 28 28 28 Greatest Overweight (x) 36 | 5 . 6 7 4 2 6 5 5 5 5 36 Average Overweight (x) 2 | 1 . 3 4 2 2 2 3 4 5 4 5 Largest Inventory Capacity 25 | 10 15 25 25 25 25 25 25 25 25 25 25 Average Capacity 23 | 9 12 21 25 25 25 24 25 25 25 25 23 Most Carried 25 | 1 7 22 25 25 25 25 24 24 23 23 22 Average Carried 20 | . 4 12 23 23 23 21 22 23 23 23 17 Final Capacity 25 | 10 15 25 25 25 25 25 25 25 25 25 5 Final Carried 25 | 1 7 22 25 23 24 23 24 23 23 23 5 Class Distribution -------------------- 59% | Hacker-Tank 31% | Hacker-Gunner 9% | Hacker-Mutant Dominant Class ---------------- Hacker-Mutant | -10/Materials Hacker-Gunner | -9/Materials Hacker-Gunner | -8/Materials Hacker-Tank | -7/Factory Hacker-Tank | -6/Factory Hacker-Tank | -5/Factory Hacker-Gunner | -5/Upper Caves Hacker-Gunner | -5/Upper Caves Hacker-Gunner | -4/Factory Hacker-Mutant | -4/Waste Hacker-Mutant | -4/Factory Resources | -11 -10 -9 -8 -7 -6 -5 -5 -5 -4 -4 -4 ----------- Run | Yrd Mat Mat Mat Fac Fac Fac Upp Upp Fac Was Fac Matter Collected 6333 | 232 356 687 572 2950 426 734 264 62 . . 50 Remotely 1303 | . . . . 892 361 . . . . . 50 Salvage Created 6110 | . 394 1198 262 1932 471 1452 292 103 . . 6 Parts 334 | . 24 97 17 106 16 67 4 3 . . . Haulers Intercepted 1 | . . 1 . . . . . . . . . Recyclers Shooed 3 | . 2 . . . . 1 . . . . . Parts Field Recycled . | . . . . . . . . . . . . Retrieved Matter . | . . . . . . . . . . . . Parts Self-Destructed . | . . . . . . . . . . . . Prevented . | . . . . . . . . . . . . Kills | -11 -10 -9 -8 -7 -6 -5 -5 -5 -4 -4 -4 ------- Run | Yrd Mat Mat Mat Fac Fac Fac Upp Upp Fac Was Fac Combat Hostiles Destroyed 140 | . 9 27 4 58 8 21 11 1 . . 1 Melee 1 | . . . . 1 . . . . . . . Guns 57 | . 6 26 3 16 . 1 5 . . . . Cannons 73 | . . . 1 40 8 16 6 1 . . 1 AOE 6 | . 3 . . . . 3 . . . . . Classes Destroyed 15 | . 4 5 1 2 1 1 1 . . . . Worker 8 | . . . 1 4 . 3 . . . . . Builder 5 | . . 1 . 1 . 3 . . . . . Tunneler 2 | . . . . . . 2 . . . . . Hauler 1 | . . 1 . . . . . . . . . Recycler 4 | . 1 . . 1 1 1 . . . . . Operator 5 | . . 1 . 3 . 1 . . . . . Watcher 18 | . 3 5 2 5 . 3 . . . . . Swarmer 30 | . 2 10 . 8 3 6 1 . . . . Grunt 52 | . 7 7 . 31 . 6 1 . . . . Brawler 1 | . . . . . 1 . . . . . . Duelist 6 | . . 1 . 3 1 1 . . . . . Sentry 27 | . . 9 4 8 1 4 1 . . . . Hunter 1 | . . . . 1 . . . . . . . Programmer 14 | . . . . 7 2 4 . 1 . . . Packrat 1 | . . . . . . . . 1 . . . Assembled 9 | . . . . . . . 8 . . . 1 Best Kill Streak 11 | . 3 5 1 11 3 9 8 1 . . 1 Combat Bots Only 11 | . 2 4 1 11 3 7 8 1 . . 1 Max Kills in Single Turn 2 | . 2 2 1 2 2 2 2 1 . . 1 Gunslinging 1 | . . 1 . . . . . . . . . Exploded 2 | . 2 . . . . 1 . . . . . Melee 1 | . . . . 1 . . . . . . . Uniques/NPCs Destroyed . | . . . . . . . . . . . . Combat | -11 -10 -9 -8 -7 -6 -5 -5 -5 -4 -4 -4 -------- Run | Yrd Mat Mat Mat Fac Fac Fac Upp Upp Fac Was Fac Hostile Shots Fired 1034 | . 31 78 14 518 31 90 50 4 . 5 213 Missed 327 | . 12 25 3 179 12 27 11 . . 1 57 Damage Taken 7871 | . 185 453 95 2872 393 1490 335 52 . 107 1889 Core 2023 | . 52 52 . 273 261 544 12 . . 9 820 Absorbed by Shields . | . . . . . . . . . . . . Ignored by Resistances 4313 | . 114 282 60 1736 94 612 207 32 . 60 1116 Regen/Repaired (Parts) 667 | . . 61 . 66 . 540 . . . . . Core Remaining (%) 77 | 100 79 87 100 61 69 . . 44 . . . Volleys Fired 339 | . 32 51 13 140 19 53 19 7 . . 5 Largest 4 | . 2 3 4 4 3 4 4 3 . . 1 Hottest 286 | . 60 75 145 156 228 286 286 229 . . 90 Shots Fired 1016 | . 64 148 52 464 51 168 49 15 . . 5 Gun 443 | . 60 148 45 150 . 17 19 4 . . . Cannon 551 | . . . 7 314 51 136 30 8 . . 5 Launcher 19 | . 4 . . . . 15 . . . . . Special 3 | . . . . . . . . 3 . . . Kinetic 813 | . 60 148 46 460 19 47 29 4 . . . Thermal 180 | . . . 6 4 32 105 20 8 . . 5 Explosive 4 | . 4 . . . . . . . . . . Electromagnetic 16 | . . . . . . 16 . . . . . Robot Hit Streak 85 | . 56 85 16 25 12 18 8 10 . . 7 Robot Miss Streak 8 | . . 2 6 5 3 8 1 1 . . 1 Penetration Max 1 | . . . . 1 . . 1 . . . . Secondary Targets 11 | . 1 9 . 1 . . . . . . . Max Gunslinging Chain 1 | . 1 1 . 1 . . . . . . . Shots Hit Robots 696 | . 56 109 29 325 28 101 30 13 . . 5 Core Hits 327 | . 22 50 15 161 12 50 13 3 . . 1 Critical Kills 4 | . . 2 . 1 . 1 . . . . . Critical Parts Destroyed 6 | . . 3 . 2 . . . 1 . . . Critical Strikes 32 | . . 5 . 20 . 4 2 1 . . . Meltdown 1 | . . . . . . 1 . . . . . Destroy 8 | . . 4 . 3 . . . 1 . . . Blast 22 | . . . . 17 . 3 2 . . . . Smash 1 | . . 1 . . . . . . . . . Melee Attacks 7 | . . 2 . 1 1 1 . 1 . . 1 Impact 5 | . . 2 . 1 1 1 . . . . . Slashing . | . . . . . . . . . . . . Piercing . | . . . . . . . . . . . . Sneak Attacks 3 | . . . . . 1 1 . 1 . . . Combat Hostiles . | . . . . . . . . . . . . Follow-up Attacks . | . . . . . . . . . . . . Damage Inflicted 18346 | . 950 1611 549 8378 967 4368 1059 285 . . 179 Guns 5708 | . 721 1544 431 2366 . 177 375 94 . . . Cannons 10342 | . . . 112 5591 824 2778 684 191 . . 162 Explosions 1711 | . 221 . . 189 . 1301 . . . . . Melee 349 | . . 64 . 30 143 112 . . . . . Ramming 236 | . 8 3 6 202 . . . . . . 17 Kinetic 12182 | . 721 1544 431 7900 262 660 570 94 . . . Thermal 4094 | . . . 112 132 562 2446 489 191 . . 162 Explosive 413 | . 221 . . 101 . 91 . . . . . Electromagnetic 1072 | . . . . 13 . 1059 . . . . . Impact 349 | . . 64 . 30 143 112 . . . . . Slashing . | . . . . . . . . . . . . Piercing . | . . . . . . . . . . . . Highest Corruption 11 | . . 1 1 6 . . 1 . . 10 11 Average Corruption 2 | . . 1 1 2 . . 1 . . 8 10 Corruption Purged . | . . . . . . . . . . . . Corruption Blocked . | . . . . . . . . . . . . Effects 96 | . . 3 4 82 . . . . . 3 4 Message Errors 29 | . . 1 . 26 . . . . . . 2 Matter Fused 25 | . . . 2 22 . . . . . . 1 Heat Flow Errors 11 | . . . . 11 . . . . . . . Energy Discharges 9 | . . 1 1 7 . . . . . . . Parts Rejected 2 | . . . . . . . . . . 2 . Data Loss (minor) 10 | . . . 1 7 . . . . . 1 1 Data Loss (major) 2 | . . . . 2 . . . . . . . Misfires 4 | . . . . 4 . . . . . . . Alerts 3 | . . 1 . 2 . . . . . . . Weapon Failures 1 | . . . . 1 . . . . . . . Overload Shots . | . . . . . . . . . . . . Overflow Damage 637 | . . 41 . 262 139 157 11 26 . . 1 Projectiles 324 | . . . . 187 26 73 11 26 . . 1 Explosions 73 | . . . . 61 . 12 . . . . . Melee 240 | . . 41 . 14 113 72 . . . . . Knockbacks 49 | . . 1 . 38 5 3 2 . . . . Impact 3 | . . 1 . 1 . 1 . . . . . Kinetic 44 | . . . . 36 4 2 2 . . . . Secondary 2 | . . . . 1 1 . . . . . . Self-Inflicted Damage 635 | . . 1 . 385 . 241 . . . . 8 Shots 18 | . . . . 8 . 10 . . . . . Rammed 28 | . 1 1 1 22 . . . . . . 3 Targets Rammed 28 | . 1 1 1 22 . . . . . . 3 Kicked . | . . . . . . . . . . . . Crushed . | . . . . . . . . . . . . Highest Temperature 768 | . 41 251 474 753 768 730 717 284 . . 216 Average Temperature 158 | . 15 67 131 152 227 199 310 132 . . 84 Received Heat Transfer 3123 | . 156 204 54 1284 12 264 109 . . . 1040 Effects 148 | . . . 6 54 33 38 17 . . . . Shutdowns 53 | . . . 1 14 12 16 10 . . . . Energy Bleed 18 | . . . 1 5 4 5 3 . . . . Interference 20 | . . . . 14 5 1 . . . . . Matter Decay 10 | . . . . 5 2 2 1 . . . . Short Circuit 8 | . . . . 4 1 2 1 . . . . Damage (minor) 5 | . . . . 2 1 2 . . . . . Damage (major) 29 | . . . 4 10 6 7 2 . . . . Damage (core) 5 | . . . . . 2 3 . . . . . Siege Activations . | . . . . . . . . . . . . Robots Corrupted 4 | . . 1 . 1 . 2 . . . . . Combat Hostiles 2 | . . 1 . 1 . . . . . . . Parts Fried 11 | . 4 . . . 4 3 . . . . . Impact Corruptions 8 | . . 2 . 2 2 2 . . . . . Robots Melted 1 | . . . . . . 1 . . . . . Combat Hostiles 1 | . . . . . . 1 . . . . . Parts Melted 19 | . . . . 1 6 11 . 1 . . . Heat Transferred 5896 | . . . 185 124 837 3500 750 250 . . 250 Parts Sabotaged . | . . . . . . . . . . . . Parts Stolen . | . . . . . . . . . . . . Parts Stripped . | . . . . . . . . . . . . Power Chain Reactions 2 | . . . . . . 2 . . . . . Alert | -11 -10 -9 -8 -7 -6 -5 -5 -5 -4 -4 -4 ------- Run | Yrd Mat Mat Mat Fac Fac Fac Upp Upp Fac Was Fac Peak Influence 446 | . 212 259 67 446 178 294 . . 27 15 . Initial 27 | . . 25 6 14 . 5 . . 27 6 . Average 63 | . 58 89 22 72 49 74 . . 27 1 . Maximum Alert Level 2 | . 1 1 . 2 . 1 . . . . . Low Security (%) 92 | 100 95 85 100 91 100 90 . . 100 100 100 Level 1 6 | . 4 14 . 7 . 9 . . . . . Level 2 . | . . . . . . . . . . . . Level 3 . | . . . . . . . . . . . . Level 4 . | . . . . . . . . . . . . Level 5 . | . . . . . . . . . . . . High Security . | . . . . . . . . . . . . Max Security . | . . . . . . . . . . . . Squads Dispatched 34 | . . 3 . 23 3 5 . . . . . Investigation 3 | . . . . 2 . 1 . . . . . Extermination 10 | . . . . 6 2 2 . . . . . Reinforcement 16 | . . 3 . 10 1 2 . . . . . Assault . | . . . . . . . . . . . . Garrison 5 | . . . . 5 . . . . . . . Intercept . | . . . . . . . . . . . . Searches Triggered . | . . . . . . . . . . . . Construction Impeded 7 | . . . . 6 . 1 . . . . . Haulers Reinforced 3 | . . . . 2 . 1 . . . . . Active Scanning Responses . | . . . . . . . . . . . . Cargo Convoy Interrupts . | . . . . . . . . . . . . Stealth | -11 -10 -9 -8 -7 -6 -5 -5 -5 -4 -4 -4 --------- Run | Yrd Mat Mat Mat Fac Fac Fac Upp Upp Fac Was Fac Distress Signals 8 | . 1 1 3 . 1 2 . . . . . Communications Jammed 2 | . . . . . . 2 . . . . . Distress Signals 1 | . . . . . . 1 . . . . . Times Spotted 212 | . 10 35 6 72 17 29 11 1 . 5 26 Peak Tracking Total 14 | . 3 4 3 7 3 3 7 1 . 5 14 Tactical Retreats 10 | . . . . 3 . 6 . . . . 1 Traps | -11 -10 -9 -8 -7 -6 -5 -5 -5 -4 -4 -4 ------- Run | Yrd Mat Mat Mat Fac Fac Fac Upp Upp Fac Was Fac Traps Triggered 24 | . 3 2 3 6 1 8 . . 1 . . Indirectly 3 | . . . . . . 3 . . . . . Trap Hack Attempts . | . . . . . . . . . . . . Triggered . | . . . . . . . . . . . . Disarmed . | . . . . . . . . . . . . Reprogrammed 4 | . 4 . . . . . . . . . . Reused 2 | . 2 . . . . . . . . . . Traps Extracted . | . . . . . . . . . . . . Installed . | . . . . . . . . . . . . Triggered 2 | . 2 . . . . . . . . . . Machines | -11 -10 -9 -8 -7 -6 -5 -5 -5 -4 -4 -4 ---------- Run | Yrd Mat Mat Mat Fac Fac Fac Upp Upp Fac Was Fac Machines Disabled 68 | . . . . 29 5 34 . . . . . Max in Single Turn 9 | . . . . 6 2 9 . . . . . Garrison Access 4 | . . . . 3 . 1 . . . . . Machines Repaired . | . . . . . . . . . . . . Machines Dismantled . | . . . . . . . . . . . . Machines Sabotaged . | . . . . . . . . . . . . Overloaded Fab Kills . | . . . . . . . . . . . . Hacking | -11 -10 -9 -8 -7 -6 -5 -5 -5 -4 -4 -4 --------- Run | Yrd Mat Mat Mat Fac Fac Fac Upp Upp Fac Was Fac Machines Accessed 28 | . 3 2 1 15 1 6 . . . . . Terminals 15 | . 3 1 1 7 1 2 . . . . . Fabricators 1 | . . . . 1 . . . . . . . Repair Stations 5 | . . 1 . 3 . 1 . . . . . Recycling Units 2 | . . . . 1 . 1 . . . . . Scanalyzers . | . . . . . . . . . . . . Garrison Access 5 | . . . . 3 . 2 . . . . . Total Hacks 52 | . 7 4 1 28 2 10 . . . . . Successful 39 | . 6 3 1 20 2 7 . . . . . Failed 13 | . 1 1 . 8 . 3 . . . . . Catastrophic . | . . . . . . . . . . . . Database Lockouts . | . . . . . . . . . . . . Manual 1 | . . . . . . 1 . . . . . Terminals 28 | . 7 2 1 12 2 4 . . . . . Fabricators 1 | . . . . 1 . . . . . . . Repair Stations 14 | . . 2 . 10 . 2 . . . . . Recycling Units 3 | . . . . 2 . 1 . . . . . Scanalyzers . | . . . . . . . . . . . . Garrison Access 6 | . . . . 3 . 3 . . . . . Terminal Hacks 23 | . 6 1 1 10 2 3 . . . . . Record 2 | . . . . 2 . . . . . . . Open DSF 3 | . . . . 3 . . . . . . . Level Access Points 1 | . . . . . 1 . . . . . . Alert Level 5 | . 1 . . 3 . 1 . . . . . Unreport Threat 2 | . 1 . . 1 . . . . . . . Locate Traps 3 | . 1 . 1 . 1 . . . . . . Reprogram Traps 1 | . 1 . . . . . . . . . . Dispatch Records 2 | . 2 . . . . . . . . . . Security Status 1 | . . . . . . 1 . . . . . Transport Status 1 | . . 1 . . . . . . . . . Registered Components 1 | . . . . 1 . . . . . . . Zone Layout 1 | . . . . . . 1 . . . . . Fabricator Hacks 1 | . . . . 1 . . . . . . . Network Status 1 | . . . . 1 . . . . . . . Repair Station Hacks 10 | . . 2 . 6 . 2 . . . . . Scan Component 6 | . . 1 . 4 . 1 . . . . . Repair 4 | . . 1 . 2 . 1 . . . . . Recycling Unit Hacks 1 | . . . . . . 1 . . . . . Retrieve Components 1 | . . . . . . 1 . . . . . Scanalyzer . | . . . . . . . . . . . . Garrison Access Hacks 4 | . . . . 3 . 1 . . . . . Seal Access 4 | . . . . 3 . 1 . . . . . Unauthorized Hacks . | . . . . . . . . . . . . Terminals . | . . . . . . . . . . . . Fabricators . | . . . . . . . . . . . . Repair Stations . | . . . . . . . . . . . . Recycling Units . | . . . . . . . . . . . . Scanalyzers . | . . . . . . . . . . . . Garrison Access . | . . . . . . . . . . . . Data Cores Recovered 4 | . . 1 . 3 . . . . . . . Used 2 | . . . . 2 . . . . . . . Hacking Detections 8 | . . 2 . 5 . 1 . . . . . Full Trace Events 1 | . . . . . . 1 . . . . . Feedback Events . | . . . . . . . . . . . . Feedback Blocked . | . . . . . . . . . . . . Robot Schematics Acquired . | . . . . . . . . . . . . Robots Built . | . . . . . . . . . . . . Authchips . | . . . . . . . . . . . . Time . | . . . . . . . . . . . . Total Robot Build Rating . | . . . . . . . . . . . . Part Schematics Acquired . | . . . . . . . . . . . . Parts Built . | . . . . . . . . . . . . Authchips . | . . . . . . . . . . . . Time . | . . . . . . . . . . . . Total Part Build Rating . | . . . . . . . . . . . . Parts Repaired 4 | . . 1 . 2 . 1 . . . . . Time 161 | . . 26 . 122 . 13 . . . . . Parts Recycled . | . . . . . . . . . . . . Recycled Matter . | . . . . . . . . . . . . Retrieved Matter . | . . . . . . . . . . . . Retrieved Components 8 | . . . . . . 8 . . . . . Parts Scanalyzed . | . . . . . . . . . . . . Part Schematics Acquired . | . . . . . . . . . . . . Parts Damaged . | . . . . . . . . . . . . Bothacking | -11 -10 -9 -8 -7 -6 -5 -5 -5 -4 -4 -4 ------------ Run | Yrd Mat Mat Mat Fac Fac Fac Upp Upp Fac Was Fac Used RIF Installer . | . . . . . . . . . . . . Robots Hacked 5 | . . . . . . . . 4 . . 1 Non-combat 4 | . . . . . . . . 4 . . . Combat 1 | . . . . . . . . . . . 1 Robot Hacks Applied 5 | . . . . . . . . 4 . . 1 parse_system 5 | . . . . . . . . 4 . . 1 Relay Couplers Released 3 | . . . . . 3 . . . . . . Programmers 3 | . . . . . 3 . . . . . . Fabnet Peak Effective % . | . . . . . . . . . . . . Robots Rewired . | . . . . . . . . . . . . Allies Hacked . | . . . . . . . . . . . . Hacks Repelled . | . . . . . . . . . . . . Allies | -11 -10 -9 -8 -7 -6 -5 -5 -5 -4 -4 -4 -------- Run | Yrd Mat Mat Mat Fac Fac Fac Upp Upp Fac Was Fac Total Allies . | . . . . . . . . . . . . Largest Group . | . . . . . . . . . . . . Highest-Rated Group . | . . . . . . . . . . . . Highest-Rated Ally . | . . . . . . . . . . . . Total Orders . | . . . . . . . . . . . . Ally Attacks . | . . . . . . . . . . . . Total Damage . | . . . . . . . . . . . . Kills . | . . . . . . . . . . . . Allies Corrupted . | . . . . . . . . . . . . Allies Melted . | . . . . . . . . . . . . Intel | -11 -10 -9 -8 -7 -6 -5 -5 -5 -4 -4 -4 ------- Run | Yrd Mat Mat Mat Fac Fac Fac Upp Upp Fac Was Fac Robot Analysis Total . | . . . . . . . . . . . . Derelict Logs Recovered 2 | . . . . . . . 1 1 . . . Drone Launches . | . . . . . . . . . . . . Drone Recoveries . | . . . . . . . . . . . . Exploration | -11 -10 -9 -8 -7 -6 -5 -5 -5 -4 -4 -4 ------------- Run | Yrd Mat Mat Mat Fac Fac Fac Upp Upp Fac Was Fac Turns Passed 16410 | 97 1010 2314 2246 6068 1337 2195 601 280 30 160 72 Spaces Moved 9122 | 48 612 1208 957 3621 820 1230 352 142 18 98 16 Core 18 | 17 . . . . . . . . . . 1 Treads 568 | 31 369 . 168 . . . . . . . . Legs 32 | . . . 32 . . . . . . . . Wheels 8504 | . 243 1208 757 3621 820 1230 352 142 18 98 15 Hover . | . . . . . . . . . . . . Flight . | . . . . . . . . . . . . Fastest Speed 50 | 50 100 100 155 130 130 130 130 160 175 145 145 Average Speed 144 | 181 136 156 205 131 130 132 150 173 175 160 251 Slowest Speed 1850 | 300 160 190 430 160 130 190 175 175 175 175 1850 Overloaded Moves . | . . . . . . . . . . . . Propulsion Burnouts . | . . . . . . . . . . . . Robots Hopped . | . . . . . . . . . . . . Cave-ins Triggered . | . . . . . . . . . . . . Exploration Rate (%) 48 | 4 96 90 94 83 22 39 57 16 1 81 1 Regions Visited 11 Branch Regions 2 Pre-discovered Areas . | . . . . . . . . . . . . Known Exits Taken 9 | 1 1 1 1 1 1 1 1 1 . . . Unknown Exits Taken . | . . . . . . . . . . . . Scrap Searched 3 | . . . . . . . 2 1 . . . Spaces Dug . | . . . . . . . . . . . . Terrain Destroyed 331 | . 24 . . 139 7 146 12 3 . . . Melee . | . . . . . . . . . . . . Projectile 123 | . . . . 61 7 40 12 3 . . . AOE 208 | . 24 . . 78 . 106 . . . . . Terrain Rammed . | . . . . . . . . . . . . Walls Destroyed . | . . . . . . . . . . . . Machines Disabled . | . . . . . . . . . . . . Actions | -11 -10 -9 -8 -7 -6 -5 -5 -5 -4 -4 -4 --------- Run | Yrd Mat Mat Mat Fac Fac Fac Upp Upp Fac Was Fac Total 11567 | 55 718 1514 1222 4619 1051 1676 388 165 18 100 41 Wait 1681 | . 54 207 161 742 184 294 15 13 . 2 9 Move 9112 | 47 611 1207 956 3620 819 1229 351 141 18 97 16 Hop . | . . . . . . . . . . . . Pick Up 121 | 1 5 15 33 23 7 35 2 . . . . Fast Attach 23 | 7 4 2 1 1 1 6 . . . 1 . Attach 35 | . 1 2 3 9 1 10 1 1 . . 7 Detach 6 | . . . . 4 . 2 . . . . . Swap 107 | . 9 18 19 30 10 19 . 2 . . . Drop 92 | . 1 9 35 19 9 19 . . . . . Fire 339 | . 32 51 13 140 19 53 19 7 . . 5 Melee 7 | . . 2 . 1 1 1 . 1 . . 1 Ram 26 | . . 1 . 22 . . . . . . 3 Kick . | . . . . . . . . . . . . Crush 2 | . 1 . 1 . . . . . . . . Escape Stasis 16 | . . . . 8 . 8 . . . . . Rewire . | . . . . . . . . . . . . Trap . | . . . . . . . . . . . . Miscellaneous . | . . . . . . . . . . . . Route ------- -11/Scrapyard -10/Materials (discovered 5 exits: *Mat x3 / *Min x2) -9/Materials (discovered 5 exits: *Mat x3 / *Min x2) -8/Materials (discovered 5 exits: *Fac x3 / *Sto x2) -7/Factory (discovered 5 exits: *Fac x3 / *Low x2) -6/Factory (discovered 4 exits: *Fac x4) -5/Factory (discovered 4 exits: *Fac x2 / *Upp x2) -5/Upper Caves -5/Upper Caves -4/Factory -4/Waste -4/Factory History --------- Turn | Location | Event 9 | -11/Scrapyard | Identified exit to Materials 9 | -11/Scrapyard | Discovered exit to Materials (range 15) 98 | -11/Scrapyard | Entered Materials 98 | -10/Materials | Evolved 1 slot: Utility x1 289 | -10/Materials | Identified exit to Mines 289 | -10/Materials | Discovered exit to Mines (range 15) 309 | -10/Materials | Build established: Hacker-Mutant 555 | -10/Materials | Identified exit to Materials 555 | -10/Materials | Discovered exit to Materials (range 14) 764 | -10/Materials | Discovered exit to Materials (range 5) 858 | -10/Materials | Discovered exit to Materials (range 9) 871 | -10/Materials | Discovered exit to Mines (range 16) 1108 | -10/Materials | Entered another Materials area 1108 | -9/Materials | Evolved 2 slots: Power x1, Weapon x1 1625 | -9/Materials | Identified exit to Materials 1625 | -9/Materials | Discovered exit to Materials (range 11) 1851 | -9/Materials | Build established: Hacker-Gunner 1860 | -9/Materials | Discovered exit to Materials (range 9) 2153 | -9/Materials | Repaired Assault Rifle 2407 | -9/Materials | Discovered exit to Materials (range 9) 2468 | -9/Materials | Identified exit to Mines 2468 | -9/Materials | Discovered exit to Mines (range 4) 2728 | -9/Materials | Discovered exit to Mines (range 12) 3422 | -9/Materials | Entered another Materials area 3422 | -8/Materials | Evolved 2 slots: Utility x1, Weapon x1 3440 | -8/Materials | Identified exit to Storage 3440 | -8/Materials | Discovered exit to Storage (range 14) 3938 | -8/Materials | Discovered exit to Storage (range 16) 4446 | -8/Materials | Identified exit to Factory 4446 | -8/Materials | Discovered exit to Factory (range 14) 4815 | -8/Materials | Met 7R-MNS 5053 | -8/Materials | Discovered exit to Factory (range 16) 5581 | -8/Materials | Discovered exit to Factory (range 16) 5668 | -8/Materials | Entered Factory 5668 | -7/Factory | Evolved 2 slots: Propulsion x2 5669 | -7/Factory | Caught up to 7R-MNS 5708 | -7/Factory | Build established: Hacker-Tank 5873 | -7/Factory | Garrison activated, responded to threat 5935 | -7/Factory | Identified exit to Lower Caves 5935 | -7/Factory | Discovered exit to Lower Caves (range 10) 7967 | -7/Factory | Identified exit to Factory 7967 | -7/Factory | Discovered exit to Factory (range 14) 8100 | -7/Factory | Repaired Broken Imp. Cooling System 8217 | -7/Factory | Repaired Broken Arm. Huge Wheel 8792 | -7/Factory | Discovered exit to Lower Caves (range 5) 9470 | -7/Factory | Garrison activated, responded to threat 9565 | -7/Factory | Destroyed 11 combat bots 11447 | -7/Factory | Discovered exit to Factory (range 15) 11641 | -7/Factory | Discovered exit to Factory (range 12) 11736 | -7/Factory | Entered another Factory area 11736 | -6/Factory | Evolved 2 slots: Power x1, Utility x1 11737 | -6/Factory | Caught up to 7R-MNS 12463 | -6/Factory | Identified exit to Factory 13073 | -6/Factory | Entered another Factory area 13073 | -5/Factory | Evolved 2 slots: Utility x2 13074 | -5/Factory | Caught up to 7R-MNS 13122 | -5/Factory | Identified exit to Upper Caves 13122 | -5/Factory | Discovered exit to Upper Caves (range 15) 14072 | -5/Factory | Core integrity fell below 50% 14105 | -5/Factory | Lost 4 parts (3p1w) 14380 | -5/Factory | Repaired Huge Storage Unit 14467 | -5/Factory | Identified exit to Factory 14467 | -5/Factory | Discovered exit to Factory (range 5) 14754 | -5/Factory | Discovered exit to Factory (range 9) 15126 | -5/Factory | Destroyed 7 combat bots 15227 | -5/Factory | Discovered exit to Upper Caves (range 9) 15268 | -5/Factory | Entered Upper Caves 15513 | -5/Upper Caves | Encountered an infested base 15555 | -5/Upper Caves | Build established: Hacker-Gunner 15581 | -5/Upper Caves | Destroyed 8 combat bots 15637 | -5/Upper Caves | Learned Factory stockpile data 15794 | -5/Upper Caves | Attracted the attention of an 0b10 checkpoint 15858 | -5/Upper Caves | Identified exit to Upper Caves 15858 | -5/Upper Caves | Discovered exit to Upper Caves (range 4) 15869 | -5/Upper Caves | Entered another Upper Caves area 15874 | -5/Upper Caves | Discovered exit to Factory (range 12) 16149 | -5/Upper Caves | Entered Factory 16149 | -4/Factory | Evolved 2 slots: Power x1, Weapon x1 16179 | -4/Factory | Sucked down chute 16179 | -4/Factory | Entered Waste 16194 | -4/Waste | EMP discharged 16194 | -4/Waste | Spotted C-40 Crusher 16200 | -4/Waste | Spotted C-40 Crusher 16200 | -4/Waste | Spotted C-40 Crusher 16219 | -4/Waste | Crushed by Compactor (1 part destroyed) 16224 | -4/Waste | Spotted C-40 Crusher 16228 | -4/Waste | Spotted C-40 Crusher 16230 | -4/Waste | Crushed by Compactor (1 part destroyed) 16233 | -4/Waste | Crushed by Compactor (1 part destroyed, 2 dropped) 16264 | -4/Waste | Lost 3 parts (2p1w) 16283 | -4/Waste | Spotted C-40 Crusher 16294 | -4/Waste | EMP discharged 16294 | -4/Waste | System corruption reached 10% 16302 | -4/Waste | Crushed by Compactor (1 part destroyed, 1 dropped) 16326 | -4/Waste | Identified exit to Factory 16326 | -4/Waste | Discovered exit to Factory (range 10) 16339 | -4/Waste | Entered Factory 16400 | -4/Factory | Core integrity fell below 50% 16411 | -4/Factory | Self-destructed Last Messages --------------- System Guard destroyed. System corrupted by crushing effect (+1). Adv. Cooling System destroyed. as-01838 shuts down. Penetrated by Slug. Enh. Gauss Cannon destroyed. as-22653 suffers critical hit (Burn). Slug penetrates as-22653. as-12813 destroyed. Destroyed Asb. Hover System. Huge Storage Unit destroyed. Penetrated by Slug. System corrupted: Matter fused (-10). Penetrated by Slug. as-11586 destroyed. Critical hit (Burn: +80). Penetrated by Slug. as-22653 destroyed. as-57453 heat spikes uncontrollably. Critical hit (Burn: +80). Map ----- +----------------------------------------------------+ | ????????????????????????????????????????? | | ????????????????????????????????????????? | | ????????????????????????????????????????? | | ????????????????????????????????????????? | | ????????????????????????????????????????? | | ????????????????????????????????????????? | | ????????????????????????????????????????? | | ????????????????????????????????????????? | | ????????????????????????????????????????? | | ????????????????????????????????????????? | | ????????????????????????????????????????? | | ????????????????????????????????????????? | | ????????????????????????????????????????? | | ????????????##########??????????????????? | | ??????####### #??????????????????? | | ??????# # " %#??????????????????? | | ??????# # " #??????????????????? | | ??????# # " #??????????????????? | | ??????# # #??????????????????? | | ??????# # #??????????????????? | | ??????# # % ????????????????????? | | ??????# # ?????????????????????? | | ??????# # ??????????????????????? | | ??????# ###a#############???????????? | | ??????# a !a%= ????????? | | ??????# !a@!! ????????? | | ??????# aaaaa!!! ????????? | | ??????# a]!% ????????? | | ??????# ?????????? | | ??????###+#+################ ?????????? | | ??????? ???????????????????????????? | | ????? """" ??????????????????????????? | | ????? """" ??????????????????????????? | | ????? """" ?????????????????????????? | | ???????"""=* ""????????????????????????? | | ?????????" = ""????????????????????????? | | ?????????"* ?????????????????????????? | | ????????? ?????????????????????????? | | ????????? ????????????????????????? | | ????????? ?????????????????????????? | | ?????????? ???????????????????????????? | | ????????????????????????????????????????? | | ????????????????????????????????????????? | | ????????????????????????????????????????? | | ????????????????????????????????????????? | | ????????????????????????????????????????? | | ????????????????????????????????????????? | | ????????????????????????????????????????? | | ????????????????????????????????????????? | | ????????????????????????????????????????? | +----------------------------------------------------+ Best States ------------- Heat Dissipation 74 Energy Generation 45 Energy Capacity 715 Matter Stores 450 Matter Capacity 450 Sight Range 16 Robot Scan Range 15 Terrain Scan Density 10 ECM Strength 2 Jamming Range 14 Corruption Containment 8 Armor Coverage 600 Resistance: KI 35 Resistance: TH 35 Resistance: EX 35 Resistance: EM 35 Resistance: I 35 Resistance: S 35 Resistance: P 35 Evasion (%) 40 Targeting Accuracy 8 Recoil Reduction 2 Kinecelleration 40 Offensive Hacking 34 Trap Extractor Capacity 6 Item Schematics ----------------- None Robot Schematics ------------------ None Fabricated ------------ Nothing Alien Tech Used ----------------- None Achievements -------------- Fist Fight More Dakka Please Challenges ------------ None Game ------ Seed SuperdenseWarlordInterrupter Manual? 0 Play Time 02:18:45 Cumulative 12.3 hours Start 2024.11.14 @ 23:47:10 End 2024.11.17 @ 21:40:34 Sessions 7 Manual Loads 0 Difficulty Explorer Special Mode None Game No. 19 Rogue 3 Adventurer 4 Explorer 12 Win Type - Total 0 Types 0/0/0/0/0/0/0/0/0 Lore% 4 Gallery% 18 Achievement% 16 Wizard Run 0 Options --------- Layout 1 ASCII 0 Keyboard 0 Movement Mouse Keybinds 0 Fullscreen 1 Font 24/Smallcaps Map View 50x35 Zoom Use 0% Tactical HUD 0 Map Filters NONE Filters NONE Steam 1 RUN: 6e762f4c-91a1-4780-beab-1f1eecdcf1b2